bitfinex/quotes_SOLUSD_20260201
["timestamp","ask_amount","ask_price","bid_price","bid_amount"]
[1769918888038,2.59908193,104.97,104.95,1.58357836]
[1769918888343,2.59908193,104.97,104.94,9.79167531]
[1769918888943,17.09324157,104.99,104.96,1.59790155]
[1769918889243,7.5681581,104.99,104.96,5.09167531]
[1769918890342,4.96907617,104.99,104.98,5.11983002]
[1769918890736,12.12243874,105.01,104.98,5.11983002]
[1769918891033,2.59908193,105.0,104.97,3.49377376]
[1769918891219,2.59908193,105.0,104.98,1.63989155]
[1769918891824,2.59908193,105.0,104.97,14.66007922]
[1769918892846,2.59908193,105.0,104.97,5.13366531]
[1769918893632,2.59908193,105.0,104.96,14.68788106]
[1769918895544,2.59908193,105.0,104.96,14.68495233]
[1769918897760,2.59908193,105.0,104.97,3.49084503]
[1769918898738,2.59908193,105.0,104.97,5.22323482]
[1769918899350,2.59908193,105.0,104.97,9.92323482]
[1769918899926,9.52382465,105.0,104.97,1.73238979]
[1769918900131,2.59908193,104.99,104.94,4.7]
[1769918900332,2.59908193,104.99,104.93,19.47841926]
[1769918901042,2.59908193,104.99,104.94,5.24831782]
[1769918901947,2.59908193,104.97,104.92,6.46979863]
[1769918902149,2.59908193,104.97,104.93,3.49084503]
[1769918902453,2.59908193,104.97,104.93,13.02088522]
[1769918903952,2.59908193,104.97,104.93,14.81491243]
[1769918907154,2.59908193,104.97,104.93,19.51491243]
[1769918911560,2.59908193,104.96,104.93,14.81491243]
[1769918912059,2.59908193,104.96,104.92,1.88553267]
[1769918912266,12.12742876,104.95,104.92,1.88553267]
[1769918912469,2.59908193,104.94,104.92,1.88553267]
[1769918912965,2.59908193,104.94,104.91,14.91879327]
[1769918916269,2.59908193,104.94,104.9,3.49084503]
[1769918916270,2.59908193,104.93,104.9,3.49084503]
[1769918916478,2.59908193,104.93,104.89,5.62941987]
[1769918916772,2.59908193,104.93,104.9,1.93857484]
[1769918917372,12.12935009,104.93,104.9,1.93857484]
[1769918918148,9.53026816,104.93,104.9,3.49084503]
[1769918918464,9.53026816,104.93,104.91,1.96896026]
[1769918920270,12.2216146,104.93,104.91,1.96896026]
[1769918921672,12.2216146,104.93,104.9,10.18915568]
[1769918922167,12.2216146,104.93,104.91,2.00787023]
[1769918923368,12.2216146,104.93,104.9,6.72666124]
[1769918923544,2.60700243,104.92,104.89,0.2]
[1769918923747,2.60700243,104.92,104.88,0.2]
[1769918925162,2.60700243,104.9,104.88,0.2]
[1769918926152,12.14079974,104.89,104.88,0.2]
[1769918927553,2.60700243,104.88,104.86,0.1]
[1769918931569,2.60700243,104.91,104.87,2.40024464]
[1769918932570,2.60700243,104.9,104.87,2.40024464]
[1769918932750,2.60700243,104.9,104.87,5.89108967]
[1769918933262,9.53238149,104.91,104.88,2.41779698]
[1769918933571,9.53153749,104.92,104.9,2.41779698]
[1769918934073,12.13853992,104.92,104.9,2.41779698]
[1769918934456,12.13853992,104.92,104.89,5.91682894]
[1769918942082,2.60700243,104.92,104.89,5.91682894]
[1769918943367,2.60700243,104.92,104.89,10.61682894]
[1769918946162,12.13811701,104.92,104.89,10.61682894]
[1769918946481,28.79853934,104.94,104.9,2.5171925]
[1769918946482,12.13730539,104.93,104.9,2.5171925]
[1769918946674,12.13730539,104.93,104.9,6.00803753]
[1769918947369,17.23155128,104.94,104.91,2.53120211]
[1769918947677,17.23155128,104.94,104.91,6.02204714]
[1769918948579,7.70206181,104.94,104.91,6.02204714]
[1769918948789,4.9735231,104.94,104.92,2.53808647]
[1769918949084,4.9735231,104.94,104.92,6.0289315]
[1769918949584,7.70206181,104.94,104.92,3.49084503]
[1769918950188,7.70206181,104.94,104.91,15.56759845]
[1769918950971,7.70206181,104.94,104.92,3.49084503]
[1769918952185,5.36202663,104.94,104.91,9.53186167]
[1769918952390,2.94677225,104.94,104.91,13.0227067]
[1769918953272,2.94677225,104.94,104.92,3.49084503]
[1769918957592,2.94677225,104.94,104.92,3.49407425]
[1769918958994,2.94677225,104.93,104.89,9.53325752]
[1769918959193,2.94677225,104.93,104.89,13.02740348]
[1769918959490,2.94677225,104.93,104.9,3.49407425]
[1769918961091,12.47707041,104.93,104.9,3.49407425]
[1769918962500,12.47707041,104.93,104.89,3.49407425]
[1769918963008,23.82313703,104.94,104.91,3.49407425]
[1769918963009,2.94677225,104.94,104.91,3.49407425]
[1769918963308,12.47607793,104.94,104.91,3.49407425]
[1769918963606,2.94677225,104.93,104.9,3.49407425]
[1769918966905,2.94677225,104.93,104.9,13.02672342]
[1769918969705,2.94677225,104.93,104.9,17.72672342]
[1769918969913,2.94677225,104.94,104.91,3.49407425]
[1769918970589,7.92184619,104.96,104.9,33.36487033]
[1769918970794,7.92184619,104.96,104.92,3.49407425]
[1769918970994,2.94677225,104.96,104.92,3.49407425]
[1769918972291,2.94677225,104.95,104.92,13.02463268]
[1769918973708,2.94677225,104.95,104.93,3.49407425]
[1769918981018,2.94677225,104.95,104.93,13.02402177]
[1769918981513,2.94677225,104.95,104.93,8.19407425]
[1769918983617,2.94677225,104.95,104.93,4.7]
[1769918988626,2.94677225,104.95,104.93,14.23013976]
[1769918988819,0.4339273,104.96,104.94,2.29243663]
[1769918989123,14.4975796,104.99,104.95,2.29243663]
[1769918989313,9.52529271,104.99,104.95,5.78651088]
[1769918990309,33.33382117,105.0,104.95,5.78651088]
[1769918990811,2.76510526,104.99,104.95,5.78651088]
[1769918991116,2.76510526,104.99,104.95,2.29243663]
[1769918991426,2.76510526,104.99,104.92,23.82575252]
[1769918991427,2.76510526,104.99,104.93,15.29842644]
[1769918992522,2.76510526,104.97,104.94,2.26873288]
[1769918993833,2.76510526,104.97,104.93,5.75705038]
[1769918994435,2.76510526,104.97,104.93,2.26297613]
[1769918995138,2.76510526,104.96,104.93,5.75705038]
[1769918995313,2.76510526,104.96,104.93,10.45705038]
[1769918997736,12.29234144,104.97,104.95,2.23968421]
[1769918998230,12.29234144,104.97,104.94,5.73375846]
[1769918998733,12.25518606,104.97,104.94,5.73375846]
[1769918999040,12.25518606,104.97,104.94,10.43375846]
[1769918999760,23.81405982,104.98,104.95,5.72250995]
[1769919000050,9.52420637,105.0,104.96,5.72250995]
[1769919000220,2.76510526,104.99,104.96,5.72250995]
[1769919001236,2.76510526,104.99,104.96,15.24993544]
[1769919002234,2.76510526,104.99,104.97,3.49407425]
[1769919002935,2.76510526,104.99,104.96,15.24993544]
[1769919004328,2.76510526,105.0,104.97,5.6954999]
[1769919004722,7.73606343,105.01,104.98,2.20142565]
[1769919005022,12.4864857,105.03,105.0,2.20142565]
[1769919005231,12.4864857,105.03,105.01,2.20142565]
[1769919005539,7.93416945,105.03,105.0,5.6902826]
[1769919005726,2.96510526,105.03,105.0,5.6902826]
[1769919006128,2.96510526,105.03,105.01,3.49407425]
[1769919006516,0.2,105.03,105.02,5.68512522]
[1769919007336,0.2,105.04,105.02,5.68512522]
[1769919007527,0.2,105.04,105.03,5.6749875]
[1769919007728,0.2,105.04,105.02,5.6749875]
[1769919009239,0.2,105.04,105.02,15.19665866]
[1769919012840,0.2,105.07,105.04,1.75657043]
[1769919013037,0.2,105.07,105.05,5.25064468]
[1769919014230,2.88379565,105.07,105.02,1.74722024]
[1769919014447,2.68379565,105.06,105.02,14.76281959]
[1769919015027,2.68379565,105.06,105.03,1.74722024]
[1769919015226,2.68379565,105.06,105.03,5.24129449]
[1769919016341,2.68379565,105.05,104.99,1.73808362]
[1769919016545,2.68379565,105.05,104.99,5.23215787]
[1769919016743,2.68379565,105.05,105.0,11.26141577]
[1769919017046,2.68379565,105.05,105.0,9.52333215]
[1769919017345,2.68379565,105.05,105.0,13.0174064]
[1769919018136,2.68379565,105.04,105.0,13.0174064]
[1769919019354,2.68379565,105.05,105.03,3.49407425]
[1769919019649,2.68379565,105.05,105.03,3.48680346]
[1769919020933,2.68379565,105.05,105.02,3.48680346]
[1769919021256,2.68379565,105.05,105.02,14.71328856]
[1769919021737,2.68379565,105.05,105.03,3.48680346]
[1769919022734,2.88379565,105.07,105.04,5.18432777]
[1769919023248,2.88379565,105.07,105.04,19.40363553]
[1769919024746,2.68379565,105.06,105.03,14.69139099]
[1769919024944,2.68379565,105.06,105.02,9.52175544]
[1769919025151,2.68379565,105.06,105.02,13.0085589]
[1769919028558,2.68379565,105.06,105.03,3.48680346]
[1769919030539,0.2,105.07,105.03,14.65179274]
[1769919030748,2.88379565,105.08,105.06,3.48680346]
[1769919032047,0.2,105.09,105.07,3.48680346]
[1769919032241,0.2,105.09,105.07,5.12442756]
[1769919032845,0.2,105.09,105.07,3.48680346]
[1769919033253,0.2,105.09,105.07,13.00424511]
[1769919033562,2.88379565,105.09,105.07,3.48680346]
[1769919038059,2.88379565,105.09,105.06,4.7]
[1769919038459,2.50476083,105.08,105.02,14.59763098]
[1769919040158,9.51746454,105.07,105.02,14.59763098]
[1769919040461,2.50476083,105.06,105.02,14.59763098]
[1769919042742,12.10943132,105.07,105.04,1.56138938]
[1769919043056,2.59196678,105.06,105.04,3.48680346]
[1769919043261,2.59196678,105.06,105.03,5.04819284]
[1769919044547,2.59196678,105.06,105.03,14.56889564]
[1769919047449,2.59196678,105.06,105.03,5.04819284]
[1769919048968,2.59196678,105.06,105.03,9.74819284]
[1769919049169,2.59196678,105.06,105.03,19.26924742]
[1769919050060,12.11036574,105.06,105.03,6.26138938]
[1769919050261,2.59196678,105.05,105.03,4.7]
[1769919050456,12.11131841,105.05,105.01,19.23412246]
[1769919052072,23.79498161,105.07,105.01,19.23412246]
[1769919052258,2.59196678,105.06,105.01,19.23412246]
[1769919053274,2.59196678,105.05,105.02,1.50524837]
[1769919054779,2.59196678,105.05,105.02,6.20524837]
[1769919059375,2.59196678,105.04,105.01,4.96430664]
[1769919059583,2.59196678,105.04,105.01,1.47750318]
[1769919059982,2.59196678,105.04,105.01,4.96430664]
[1769919060964,2.59196678,105.04,105.01,9.66430664]
[1769919063592,12.11224865,105.04,105.01,9.66430664]
[1769919064188,2.59196678,105.03,105.01,4.7]
[1769919064489,2.59196678,105.03,105.01,2.35817106]
[1769919066287,2.59196678,105.02,105.01,2.35817106]
[1769919066466,2.59196678,105.02,104.99,14.92539757]
[1769919068087,2.59196678,105.02,104.99,14.46722651]
[1769919070090,12.11397803,105.02,104.99,1.45580689]
[1769919073873,2.59196678,105.02,104.99,1.45580689]
[1769919074078,2.59196678,105.02,104.99,10.98051322]
[1769919075278,2.59196678,105.02,104.99,11.43868428]
[1769919075487,7.53663289,105.03,105.01,1.4085747]
[1769919075890,2.57256721,105.03,105.0,1.4085747]
[1769919076298,12.09366538,105.03,105.0,1.4085747]
[1769919076675,2.57256721,105.02,104.99,0.45817106]
[1769919076876,2.57256721,105.02,104.96,1.40492632]
[1769919078196,33.33015903,105.01,104.96,1.40492632]
[1769919078403,2.57256721,105.0,104.96,1.40492632]
[1769919078587,2.57256721,105.0,104.96,4.89172978]
[1769919078900,2.57256721,105.0,104.96,14.41900195]
[1769919080200,2.57256721,105.0,104.97,4.87755053]
[1769919080405,2.57256721,105.0,104.97,14.40407207]
[1769919081601,2.57256721,105.0,104.97,14.40774534]
[1769919083308,2.57256721,105.0,104.97,13.01699827]
[1769919083484,2.57256721,105.0,104.97,14.39753271]
[1769919086108,2.57256721,105.0,104.98,1.37392003]
[1769919086402,0.25073186,105.01,104.98,14.3899124]
[1769919086609,9.52108921,105.03,105.0,6.02910546]
[1769919087285,9.52018278,105.04,105.0,6.02910546]
[1769919087484,9.52018278,105.04,105.01,2.53862873]
[1769919087890,14.48325622,105.05,105.02,3.49047673]
[1769919088197,14.48325622,105.05,105.01,3.49047673]
[1769919088398,2.57256721,105.04,105.01,3.49047673]
[1769919089288,2.57256721,105.04,105.01,6.02910546]
[1769919090208,2.57256721,105.04,105.01,15.55200358]
[1769919091314,2.57256721,105.04,105.01,13.01337485]
[1769919094712,2.57256721,105.04,105.01,15.55200358]
[1769919098906,2.57256721,105.04,105.0,15.81382863]
[1769919099112,2.57256721,105.04,105.01,2.46343733]
[1769919102310,2.37400534,105.03,105.0,6.29047673]
[1769919102514,2.37400534,105.03,105.0,5.26343733]
[1769919103204,2.37400534,105.03,105.0,8.75391406]
[1769919104011,2.37400534,105.03,105.0,18.27768993]
[1769919104622,2.37400534,105.03,105.0,15.47768993]
[1769919105711,16.89692809,105.05,105.02,2.22800999]
[1769919105920,16.89692809,105.05,105.02,5.71848672]
[1769919106213,2.41357155,105.05,105.02,5.71848672]
[1769919109213,2.41357155,105.05,105.01,15.24056432]
[1769919109422,2.41357155,105.04,105.01,15.24056432]
[1769919109598,2.41357155,105.04,105.02,2.22800999]
[1769919109925,2.41357155,105.05,105.02,15.24038278]
[1769919111002,2.41357155,105.05,105.03,2.22800999]
[1769919111203,2.41357155,105.05,105.02,15.24038278]
[1769919112426,2.41357155,105.05,105.03,3.49047673]
[1769919112627,2.41357155,105.06,105.03,5.71848672]
[1769919113028,4.96790071,105.07,105.05,2.22800999]
[1769919113212,4.96790071,105.07,105.05,5.71848672]
[1769919114217,7.38147226,105.07,105.05,5.71848672]
[1769919115925,4.96790071,105.07,105.05,15.23756784]
[1769919116129,7.38147226,105.07,105.05,15.23756784]
[1769919117323,4.96790071,105.07,105.06,2.22800999]
[1769919117507,4.96790071,105.07,105.05,15.23756784]
[1769919117508,7.38147226,105.07,105.05,15.23756784]
[1769919117708,2.41357155,105.07,105.05,15.23756784]
[1769919118722,2.41357155,105.08,105.05,15.23756784]
[1769919118929,17.09572247,105.09,105.06,5.71848672]
[1769919119114,2.41357155,105.08,105.05,15.23756784]
[1769919119313,2.41357155,105.08,105.06,2.22800999]
[1769919119716,2.41357155,105.08,105.05,15.23756784]
[1769919120416,2.41357155,105.07,105.03,2.8]
[1769919120621,2.41357155,105.07,105.03,3.49047673]
[1769919120827,2.41357155,105.07,105.03,5.71848672]
[1769919121026,2.41357155,105.07,105.02,15.24002007]
[1769919122236,2.41357155,105.05,105.02,15.24002007]
[1769919122730,2.41357155,105.08,105.05,2.22800999]
[1769919122929,5.16606707,105.09,105.06,5.71848672]
[1769919123120,2.61357155,105.09,105.07,5.71848672]
[1769919123813,2.61357155,105.09,105.07,3.49047673]
[1769919124016,2.61357155,105.09,105.07,5.71848672]
[1769919124017,0.2,105.09,105.07,5.71848672]
[1769919124213,0.2,105.09,105.07,15.23555861]
[1769919126234,2.61357155,105.09,105.07,15.23555861]
[1769919127540,0.2,105.09,105.07,15.23555861]
[1769919127738,0.2,105.14,105.1,2.14812131]
[1769919127914,0.2,105.15,105.09,2.14812131]
[1769919128118,0.2,105.15,105.13,5.63859804]
[1769919128431,0.2,105.15,105.13,2.14812131]
[1769919128633,0.2,105.15,105.13,5.63859804]
[1769919128843,0.2,105.15,105.14,3.49047673]
[1769919129033,0.2,105.18,105.15,2.14812131]
[1769919129228,8.53979405,105.2,105.17,5.63859804]
[1769919129538,2.24308103,105.22,105.19,3.49047673]
[1769919129718,2.24308103,105.22,105.19,15.1451749]
[1769919130321,2.24308103,105.22,105.2,3.49047673]
[1769919130926,2.24308103,105.25,105.21,2.14812131]
[1769919131120,6.07988887,105.27,105.24,5.63859804]
[1769919131325,2.56962903,105.29,105.26,3.49047673]
[1769919131527,2.56962903,105.29,105.27,3.49047673]
[1769919131730,2.56962903,105.29,105.25,2.14812131]
[1769919131933,2.56962903,105.29,105.26,3.49047673]
[1769919132129,9.82422368,105.29,105.24,9.50185406]
[1769919132346,2.24308103,105.28,105.23,15.14090401]
[1769919132848,13.77014361,105.32,105.26,3.49047673]
[1769919133045,13.77014361,105.32,105.27,2.14812131]
[1769919133244,47.44001611,105.4,105.32,2.14812131]
[1769919133448,23.72186169,105.39,105.33,2.14812131]
[1769919133632,23.72186169,105.39,105.33,5.63859804]
[1769919133836,9.49056649,105.37,105.33,2.14812131]
[1769919134231,9.49056649,105.37,105.32,15.13332138]
[1769919134851,8.29455867,105.35,105.32,15.13332138]
[1769919135038,2.24308103,105.34,105.31,15.1342245]
[1769919135233,8.29455867,105.35,105.32,12.98533106]
[1769919135439,6.05147764,105.35,105.33,12.98401035]
[1769919135651,6.05147764,105.35,105.27,51.76907638]
[1769919135652,8.29455867,105.35,105.31,2.14812131]
[1769919135839,8.29455867,105.35,105.31,11.43389684]
[1769919136532,8.29455867,105.35,105.32,9.28577553]
[1769919136933,8.29455867,105.35,105.32,11.43389684]
[1769919137134,6.05147764,105.35,105.34,2.14812131]
[1769919137450,6.05147764,105.35,105.32,9.49461847]
[1769919137643,8.29455867,105.35,105.31,20.92947995]
[1769919138334,6.05147764,105.35,105.33,2.14812131]
[1769919138533,6.05147764,105.35,105.33,11.43389684]
[1769919138728,2.24308103,105.37,105.33,11.43389684]
[1769919138934,2.24308103,105.37,105.34,20.9263646]
[1769919139346,2.24308103,105.38,105.34,11.43389684]
[1769919139534,2.24308103,105.38,105.34,2.14812131]
[1769919139942,2.24308103,105.38,105.32,11.43389684]
[1769919140146,2.24308103,105.38,105.31,2.14812131]
[1769919140658,2.24308103,105.38,105.31,11.43389684]
[1769919141154,2.24308103,105.36,105.31,11.43389684]
[1769919141561,2.24308103,105.36,105.32,11.43389684]
[1769919142148,2.24308103,105.36,105.31,11.43389684]
[1769919142559,2.24308103,105.36,105.31,2.14812131]
[1769919142865,2.24308103,105.38,105.35,2.14812131]
[1769919143052,2.24308103,105.38,105.35,9.28577553]
[1769919143254,2.34308103,105.39,105.36,2.14812131]
[1769919143455,2.34308103,105.39,105.36,9.28577553]
[1769919143650,2.34308103,105.39,105.36,9.2811141]
[1769919143861,2.34308103,105.39,105.36,11.42923541]
[1769919144669,2.34308103,105.39,105.36,9.2811141]
[1769919145071,11.83185593,105.39,105.35,11.42923541]
[1769919145666,2.24308103,105.38,105.35,11.42923541]
[1769919146250,2.24308103,105.38,105.35,2.14812131]
[1769919147069,2.34308103,105.39,105.36,2.14812131]
[1769919147268,2.34308103,105.39,105.36,11.42923541]
[1769919147650,0.1,105.39,105.37,11.42923541]
[1769919147869,2.24308103,105.41,105.38,11.42923541]
[1769919148258,11.73006563,105.41,105.38,2.14812131]
[1769919149876,2.24308103,105.4,105.36,11.42923541]
[1769919150061,2.24308103,105.4,105.36,2.14812131]
[1769919150260,2.24308103,105.4,105.35,2.14812131]
[1769919150663,2.24308103,105.4,105.35,11.42923541]
[1769919150868,2.24308103,105.4,105.34,11.42923541]
[1769919151190,2.24308103,105.4,105.34,9.2811141]
[1769919151357,2.24308103,105.4,105.36,9.2811141]
[1769919151564,2.24308103,105.4,105.37,9.2811141]
[1769919151963,11.73080319,105.4,105.37,9.2811141]
[1769919152780,23.7169149,105.41,105.38,9.2811141]
[1769919152781,11.73000794,105.41,105.38,9.2811141]
[1769919152981,9.48602128,105.42,105.39,11.42923541]
[1769919153189,9.48496632,105.43,105.39,11.42923541]
[1769919154877,11.72804735,105.43,105.39,11.42923541]
[1769919155289,9.48496632,105.43,105.39,11.42923541]
[1769919155474,2.24308103,105.42,105.39,2.14812131]
[1769919156281,11.72944189,105.42,105.39,2.14812131]
[1769919157972,1.99416372,105.41,105.37,2.12652359]
[1769919158176,1.99416372,105.41,105.36,11.40763769]
[1769919158488,1.99416372,105.41,105.36,2.12652359]
[1769919158878,1.99416372,105.41,105.36,11.40763769]
[1769919159379,33.201026,105.42,105.36,11.40763769]
[1769919159380,9.48766603,105.4,105.36,11.40763769]
[1769919159584,11.48182975,105.4,105.36,11.40763769]
[1769919161483,11.48182975,105.4,105.37,11.40763769]
[1769919161690,11.48040119,105.42,105.38,11.40763769]
[1769919162072,11.48040119,105.42,105.39,9.2811141]
[1769919162282,1.99416372,105.41,105.38,11.40763769]
[1769919162691,1.99416372,105.41,105.37,9.2811141]
[1769919162895,9.48550416,105.43,105.4,2.14565688]
[1769919163098,11.51651267,105.43,105.4,11.42677098]
[1769919166209,2.03100851,105.43,105.4,20.91415661]
[1769919166997,2.03100851,105.42,105.37,2.14565688]
[1769919167197,2.03100851,105.42,105.37,11.63555072]
[1769919167500,2.03100851,105.42,105.39,2.14565688]
[1769919167682,2.03100851,105.42,105.39,11.42677098]
[1769919168504,2.03100851,105.42,105.39,2.14565688]
[1769919170592,11.51736555,105.42,105.39,2.14565688]
[1769919173095,2.03100851,105.41,105.37,9.2811141]
[1769919173300,2.03100851,105.41,105.36,20.91764866]
[1769919173509,2.03100851,105.41,105.37,2.14565688]
[1769919174191,2.03100851,105.41,105.37,18.77148054]
[1769919174391,2.03100851,105.41,105.38,11.42677098]
[1769919174611,11.51736555,105.42,105.39,2.14565688]
[1769919174907,9.48635704,105.42,105.39,2.14565688]
[1769919175812,2.03100851,105.42,105.39,2.14565688]
[1769919176500,2.03100851,105.43,105.39,2.14565688]
[1769919177303,2.03100851,105.43,105.4,2.14565688]
[1769919177709,2.03100851,105.45,105.41,2.14565688]
[1769919177887,2.03100851,105.47,105.41,11.63204863]
[1769919178087,2.03100851,105.46,105.41,18.76750585]
[1769919178292,2.03100851,105.46,105.42,2.14565688]
[1769919178502,2.03100851,105.46,105.42,11.42677098]
[1769919179008,2.03100851,105.46,105.42,2.14565688]
[1769919179989,11.51414917,105.46,105.42,2.14565688]
[1769919180390,2.03100851,105.45,105.4,5.60678015]
[1769919180597,2.03100851,105.45,105.4,2.14565688]
[1769919181598,2.03100851,105.45,105.42,2.14565688]
[1769919181995,11.51492682,105.45,105.41,11.41769867]
[1769919182216,11.51492682,105.45,105.41,2.14565688]
[1769919182507,2.03100851,105.44,105.37,2.14565688]
[1769919182713,2.03100851,105.44,105.38,2.14565688]
[1769919183097,2.03100851,105.42,105.38,2.14565688]
[1769919183296,2.03100851,105.42,105.38,11.41769867]
[1769919183497,2.03100851,105.42,105.39,11.41769867]
[1769919184017,11.51742996,105.42,105.39,2.14565688]
[1769919184511,9.48642145,105.42,105.39,2.14565688]
[1769919187617,16.47379277,105.43,105.4,2.23374275]
[1769919189314,2.34429261,105.42,105.39,2.23374275]
[1769919190420,14.44278426,105.43,105.39,2.23374275]
[1769919190718,16.78707687,105.43,105.4,2.23374275]
[1769919191222,26.06159407,105.43,105.4,2.23374275]
[1769919194629,16.78707687,105.43,105.4,2.23374275]
[1769919194816,26.06159407,105.43,105.4,2.23374275]
[1769919195012,11.61880981,105.42,105.39,2.23374275]
[1769919195218,11.61880981,105.41,105.38,2.23374275]
[1769919195530,21.10601616,105.41,105.38,2.23374275]
[1769919195825,11.83149896,105.41,105.38,2.23374275]
[1769919196023,9.48627908,105.42,105.39,2.23374275]
[1769919196322,11.83057169,105.42,105.39,2.23374275]
[1769919197031,2.34429261,105.41,105.38,11.72317084]
[1769919197328,9.48627908,105.42,105.39,2.23374275]
[1769919197524,11.83057169,105.42,105.39,2.23374275]
[1769919199109,11.83057169,105.42,105.38,2.23374275]
[1769919200629,11.61880981,105.41,105.36,2.23374275]
[1769919200819,11.61880981,105.4,105.36,2.23374275]
[1769919201022,2.34429261,105.4,105.36,2.23374275]
[1769919201332,21.10721965,105.4,105.36,2.23374275]
[1769919202328,11.83270245,105.4,105.37,2.23374275]
[1769919203936,15.29752994,105.4,105.37,2.23374275]
[1769919204334,2.34429261,105.38,105.35,2.23374275]
[1769919204538,5.8091201,105.37,105.33,2.23374275]
[1769919205735,15.30009491,105.37,105.33,2.23374275]
[1769919206232,15.30009491,105.37,105.33,11.72738263]
[1769919206728,2.34429261,105.37,105.34,2.23374275]
[1769919208047,2.34429261,105.41,105.37,2.23374275]
[1769919208218,9.48586605,105.42,105.39,2.23374275]
[1769919208624,9.48586605,105.42,105.39,11.51963763]
[1769919209348,9.48586605,105.42,105.39,2.23374275]
[1769919215646,11.83015866,105.42,105.39,2.23374275]
[1769919219240,11.83015866,105.42,105.37,11.77676894]
[1769919219241,2.4968504,105.41,105.37,11.77676894]
[1769919219455,2.4968504,105.4,105.37,2.49087406]
[1769919220538,11.98455346,105.4,105.37,2.49087406]
[1769919220965,2.4968504,105.39,105.36,2.49087406]
[1769919222766,11.98568958,105.39,105.36,2.49087406]
[1769919224540,11.98568958,105.39,105.36,11.77676894]
[1769919225265,11.98568958,105.39,105.36,2.49087406]
[1769919227760,2.35130846,105.38,105.35,5.98923804]
[1769919228262,11.84014764,105.39,105.36,2.52414406]
[1769919228442,2.35130846,105.38,105.35,2.52414406]
[1769919228858,11.8410504,105.38,105.35,2.52414406]
[1769919229254,2.35130846,105.37,105.34,5.98923804]
[1769919229762,2.35130846,105.37,105.34,2.52414406]
[1769919230755,2.35130846,105.37,105.34,5.98923804]
[1769919231065,11.8410504,105.38,105.35,5.98923804]
[1769919234166,2.35130846,105.4,105.37,5.98923804]
[1769919234474,16.79580346,105.41,105.38,5.98923804]
[1769919234852,16.79580346,105.41,105.38,2.52414406]
[1769919235374,16.79580346,105.41,105.38,5.98923804]
[1769919235870,2.35130846,105.4,105.37,2.52414406]
[1769919236069,2.35130846,105.4,105.37,5.98923804]
[1769919236463,2.35130846,105.4,105.37,2.52414406]
[1769919237170,2.35130846,105.4,105.37,5.98923804]
[1769919237668,16.79580346,105.41,105.38,2.52414406]
[1769919240370,2.35130846,105.4,105.38,2.52414406]
[1769919240554,2.35130846,105.39,105.36,2.52414406]
[1769919241365,2.35130846,105.38,105.35,2.52414406]
[1769919242468,11.84092638,105.38,105.35,2.52414406]
[1769919243053,2.35130846,105.37,105.34,2.52414406]
[1769919243264,2.35130846,105.36,105.33,2.52414406]
[1769919243647,2.35130846,105.34,105.3,2.52414406]
[1769919243967,2.35130846,105.33,105.3,5.98923804]
[1769919244570,11.8450079,105.34,105.31,2.52414406]
[1769919246255,11.8450079,105.34,105.3,5.98923804]
[1769919246952,2.35130846,105.33,105.3,2.52414406]
[1769919249176,11.84589202,105.33,105.3,2.52414406]
[1769919250360,16.80722243,105.33,105.3,2.52414406]
[1769919250763,20.27231641,105.33,105.3,2.52414406]
[1769919251078,11.97435092,105.32,105.29,2.4550392]
[1769919252269,2.47929438,105.31,105.28,2.6550392]
[1769919252473,2.47929438,105.31,105.28,0.2]
[1769919252673,2.47929438,105.3,105.28,0.2]
[1769919253075,2.47929438,105.3,105.28,2.6550392]
[1769919253277,2.47929438,105.3,105.28,0.2]
[1769919254580,11.97654941,105.3,105.27,2.6550392]
[1769919255561,15.44198821,105.29,105.26,2.4550392]
[1769919255763,2.47929438,105.28,105.25,5.92013318]
[1769919258691,11.97798619,105.28,105.25,2.4550392]
[1769919258985,2.47929438,105.27,105.24,5.92013318]
[1769919259480,2.47929438,105.27,105.25,2.4550392]
[1769919262388,2.47929438,105.28,105.25,2.4550392]
[1769919262590,2.47929438,105.28,105.25,15.4208017]
[1769919265076,2.47929438,105.28,105.25,2.4550392]
[1769919265584,15.44964905,105.29,105.25,2.4550392]
[1769919265885,15.44964905,105.29,105.25,15.42850531]
[1769919265886,2.47929438,105.28,105.25,15.42850531]
[1769919267188,2.47929438,105.31,105.28,2.4550392]
[1769919267380,2.47929438,105.31,105.28,5.92741902]
[1769919267682,2.47929438,105.31,105.28,2.4550392]
[1769919267886,2.47929438,105.31,105.27,5.92741902]
[1769919268368,2.47929438,105.3,105.27,5.92741902]
[1769919270591,2.47929438,105.3,105.28,3.47237982]
[1769919270889,2.47929438,105.3,105.27,5.92741902]
[1769919273574,2.47929438,105.3,105.27,15.42678875]
[1769919275790,2.47929438,105.3,105.28,2.4550392]
[1769919276169,11.71589564,105.33,105.3,2.4550392]
[1769919276369,7.44062479,105.33,105.3,2.4550392]
[1769919276895,4.96133041,105.33,105.31,5.92741902]
[1769919277190,4.96133041,105.33,105.31,2.4550392]
[1769919277382,2.47929438,105.34,105.31,2.4550392]
[1769919279508,2.51790508,105.33,105.31,2.4550392]
[1769919280896,12.01195558,105.33,105.3,2.72838298]
[1769919288601,4.96074104,105.35,105.33,2.53114254]